[Event "Live Chess"]
[Site "Chess.com"]
[Date "2023.05.21"]
[Round "-"]
[White "diana21strabt"]
[Black "JoeRoot66"]
[Result "1/2-1/2"]
[WhiteElo "1769"]
[BlackElo "1899"]
[TimeControl "300"]
[EndTime "6:27:57 PDT"]
[Termination "Game drawn by repetition"]

1. e4 {[%clk 0:04:58.7]} 1... c6 {[%clk 0:04:59.4]} 2. d4 {[%clk 0:04:57]} 2...
d5 {[%clk 0:04:59.3]} 3. Nc3 {[%clk 0:04:55.9]} 3... dxe4 {[%clk 0:04:58.2]} 4.
Nxe4 {[%clk 0:04:55.2]} 4... Nf6 {[%clk 0:04:57.9]} 5. Nxf6+ {[%clk 0:04:53.8]}
5... exf6 {[%clk 0:04:57.8]} 6. Bc4 {[%clk 0:04:52.7]} 6... Bd6 {[%clk
0:04:57.5]} 7. Nf3 {[%clk 0:04:51.2]} 7... O-O {[%clk 0:04:57.1]} 8. O-O {[%clk
0:04:50.4]} 8... Re8 {[%clk 0:04:56.4]} 9. Be3 {[%clk 0:04:49.2]} 9... Nd7
{[%clk 0:04:55.8]} 10. c3 {[%clk 0:04:48.4]} 10... Nf8 {[%clk 0:04:55.4]} 11.
Bb3 {[%clk 0:04:47.5]} 11... Be6 {[%clk 0:04:54.7]} 12. Qd3 {[%clk 0:04:45.8]}
12... Qd7 {[%clk 0:04:51.7]} 13. Bc2 {[%clk 0:04:44.2]} 13... g6 {[%clk
0:04:49.5]} 14. Bh6 {[%clk 0:04:42.7]} 14... Bf5 {[%clk 0:04:48.5]} 15. Qd2
{[%clk 0:04:40.8]} 15... Bxc2 {[%clk 0:04:38.8]} 16. Qxc2 {[%clk 0:04:39.4]}
16... Ne6 {[%clk 0:04:38.5]} 17. h4 {[%clk 0:04:35.6]} 17... Bf4 {[%clk
0:04:36.8]} 18. Bxf4 {[%clk 0:04:32]} 18... Nxf4 {[%clk 0:04:36.7]} 19. Nh2
{[%clk 0:04:22.7]} 19... Re7 {[%clk 0:04:13.8]} 20. Rae1 {[%clk 0:04:20.4]}
20... Rae8 {[%clk 0:04:12.2]} 21. Qd2 {[%clk 0:04:12.4]} 21... Rxe1 {[%clk
0:03:59.8]} 22. Rxe1 {[%clk 0:04:08]} 22... Rxe1+ {[%clk 0:03:59.3]} 23. Qxe1
{[%clk 0:04:06.8]} 23... Qe6 {[%clk 0:03:57.4]} 24. Qxe6 {[%clk 0:04:02.7]}
24... fxe6 {[%clk 0:03:57.3]} 25. Nf3 {[%clk 0:03:55.6]} 25... Nd3 {[%clk
0:03:53.5]} 26. b3 {[%clk 0:03:53.9]} 26... Nc1 {[%clk 0:03:52.3]} 27. Kf1
{[%clk 0:03:47.5]} 27... Nxa2 {[%clk 0:03:51.3]} 28. Ke1 {[%clk 0:03:45.4]}
28... Nxc3 {[%clk 0:03:50.5]} 29. Kd2 {[%clk 0:03:43]} 29... Nd5 {[%clk
0:03:49.2]} 30. Ne1 {[%clk 0:03:33.8]} 30... a5 {[%clk 0:03:44.3]} 31. Nd3
{[%clk 0:03:32.8]} 31... b6 {[%clk 0:03:43.1]} 32. Nb2 {[%clk 0:03:31.2]} 32...
b5 {[%clk 0:03:41.3]} 33. Nd3 {[%clk 0:03:30.3]} 33... a4 {[%clk 0:03:40.9]} 34.
bxa4 {[%clk 0:03:27.4]} 34... bxa4 {[%clk 0:03:40.8]} 35. Nc5 {[%clk 0:03:26.6]}
35... a3 {[%clk 0:03:40.2]} 36. Kc2 {[%clk 0:03:20.9]} 36... Kf7 {[%clk
0:03:35.8]} 37. Kb3 {[%clk 0:03:19.5]} 37... a2 {[%clk 0:03:29.1]} 38. Kxa2
{[%clk 0:03:17.5]} 38... Nc3+ {[%clk 0:03:26]} 39. Kb3 {[%clk 0:03:15]} 39...
Ne2 {[%clk 0:03:25.9]} 40. Kc4 {[%clk 0:03:09.7]} 40... Ke7 {[%clk 0:03:24.9]}
41. g3 {[%clk 0:03:05.4]} 41... Kd6 {[%clk 0:03:23.8]} 42. Ne4+ {[%clk
0:03:03.3]} 42... Ke7 {[%clk 0:03:21.7]} 43. Kc5 {[%clk 0:03:02.2]} 43... h6
{[%clk 0:03:17.7]} 44. Nd2 {[%clk 0:02:51.8]} 44... Kd7 {[%clk 0:03:14.2]} 45.
Ne4 {[%clk 0:02:49.6]} 45... f5 {[%clk 0:03:10.4]} 46. Nf6+ {[%clk 0:02:46.9]}
46... Ke7 {[%clk 0:03:09.4]} 47. Ng8+ {[%clk 0:02:45.5]} 47... Kf8 {[%clk
0:03:05.9]} 48. Nf6 {[%clk 0:02:39.6]} 48... Kf7 {[%clk 0:03:04.2]} 49. Nd7
{[%clk 0:02:38]} 49... Nc1 {[%clk 0:02:56.5]} 50. Ne5+ {[%clk 0:02:36]} 50...
Kf6 {[%clk 0:02:55.2]} 51. Kxc6 {[%clk 0:02:33.1]} 51... Nb3 {[%clk 0:02:50.4]}
52. Nf3 {[%clk 0:02:31.4]} 52... g5 {[%clk 0:02:47.3]} 53. hxg5+ {[%clk
0:02:30]} 53... hxg5 {[%clk 0:02:47.2]} 54. d5 {[%clk 0:02:27.9]} 54... exd5
{[%clk 0:02:35.2]} 55. Kxd5 {[%clk 0:02:26.1]} 55... g4 {[%clk 0:02:33.6]} 56.
Ne1 {[%clk 0:02:16.1]} 56... Nd2 {[%clk 0:02:31.6]} 57. Nd3 {[%clk 0:02:05.7]}
57... Ne4 {[%clk 0:02:26.4]} 58. Kd4 {[%clk 0:02:03.4]} 58... Ke6 {[%clk
0:02:17.8]} 59. Nf4+ {[%clk 0:01:59.7]} 59... Kd6 {[%clk 0:02:13.1]} 60. Ke3
{[%clk 0:01:55.3]} 60... Ke5 {[%clk 0:02:11.6]} 61. Nd3+ {[%clk 0:01:53.5]}
61... Kd5 {[%clk 0:02:11.1]} 62. Nf4+ {[%clk 0:01:52]} 62... Ke5 {[%clk
0:02:10.4]} 63. Ng6+ {[%clk 0:01:47.8]} 63... Kf6 {[%clk 0:02:09.1]} 64. Nf4
{[%clk 0:01:46.2]} 64... Ke5 {[%clk 0:02:08.2]} 1/2-1/2

[Event "Live Chess"]
[Site "Chess.com"]
[Date "2023.05.21"]
[Round "-"]
[White "elephantgerrald"]
[Black "davigator"]
[Result "0-1"]
[WhiteElo "686"]
[BlackElo "2305"]
[TimeControl "300"]
[EndTime "6:27:57 PDT"]
[Termination "davigator won by checkmate"]

1. e4 {[%clk 0:04:58.1]} 1... c5 {[%clk 0:04:53.6]} 2. Nf3 {[%clk 0:04:54.7]}
2... Nc6 {[%clk 0:04:52.7]} 3. Bb5 {[%clk 0:04:52.2]} 3... g6 {[%clk 0:04:51.2]}
4. O-O {[%clk 0:04:49.4]} 4... Bg7 {[%clk 0:04:50.4]} 5. Bxc6 {[%clk 0:04:44.4]}
5... dxc6 {[%clk 0:04:49.2]} 6. c3 {[%clk 0:04:42.3]} 6... e5 {[%clk 0:04:47.7]}
7. d3 {[%clk 0:04:39.9]} 7... Bg4 {[%clk 0:04:46.6]} 8. h3 {[%clk 0:04:33.9]}
8... Bxf3 {[%clk 0:04:45.5]} 9. Qxf3 {[%clk 0:04:32.2]} 9... Nf6 {[%clk
0:04:44.4]} 10. Bg5 {[%clk 0:04:29.3]} 10... Qd6 {[%clk 0:04:42.6]} 11. Nd2
{[%clk 0:04:27.2]} 11... Nd7 {[%clk 0:04:41.9]} 12. Nc4 {[%clk 0:04:24.7]} 12...
Qc7 {[%clk 0:04:41.4]} 13. b4 {[%clk 0:04:18.2]} 13... h6 {[%clk 0:04:32]} 14.
Be3 {[%clk 0:04:14.5]} 14... cxb4 {[%clk 0:04:30.8]} 15. cxb4 {[%clk 0:04:12.3]}
15... O-O {[%clk 0:04:30.4]} 16. Rad1 {[%clk 0:04:05.5]} 16... Rad8 {[%clk
0:04:26.8]} 17. d4 {[%clk 0:04:03.8]} 17... b6 {[%clk 0:04:24.6]} 18. dxe5
{[%clk 0:04:00.8]} 18... Nxe5 {[%clk 0:04:23.8]} 19. Rxd8 {[%clk 0:03:58.4]}
19... Nxf3+ {[%clk 0:04:22.5]} 20. gxf3 {[%clk 0:03:55.9]} 20... Rxd8 {[%clk
0:04:20.6]} 21. Rc1 {[%clk 0:03:45.2]} 21... Qe7 {[%clk 0:04:19.4]} 22. Nxb6
{[%clk 0:03:40.5]} 22... axb6 {[%clk 0:04:16.4]} 23. Bxb6 {[%clk 0:03:39.1]}
23... Rc8 {[%clk 0:04:15.6]} 24. b5 {[%clk 0:03:36]} 24... Qe6 {[%clk
0:04:13.6]} 25. a4 {[%clk 0:03:33.7]} 25... cxb5 {[%clk 0:04:12.7]} 26. Rxc8+
{[%clk 0:03:29.6]} 26... Qxc8 {[%clk 0:04:12.6]} 27. axb5 {[%clk 0:03:28.6]}
27... Qb7 {[%clk 0:04:10.9]} 28. Bd4 {[%clk 0:03:25.1]} 28... Qxb5 {[%clk
0:04:10.1]} 29. Bxg7 {[%clk 0:03:23.8]} 29... Kxg7 {[%clk 0:04:10]} 30. Kg2
{[%clk 0:03:22.5]} 30... h5 {[%clk 0:04:09.2]} 31. f4 {[%clk 0:03:20]} 31... Qc4
{[%clk 0:04:07.8]} 32. Kf3 {[%clk 0:03:18.5]} 32... Qd3+ {[%clk 0:04:07.1]} 33.
Kg2 {[%clk 0:03:09.9]} 33... Qxe4+ {[%clk 0:04:07]} 34. f3 {[%clk 0:03:08.3]}
34... Qxf4 {[%clk 0:04:05.9]} 35. Kh1 {[%clk 0:03:06.7]} 35... Qxf3+ {[%clk
0:04:04.3]} 36. Kg1 {[%clk 0:03:04.3]} 36... Qxh3 {[%clk 0:04:02.5]} 37. Kf2
{[%clk 0:03:02.9]} 37... h4 {[%clk 0:04:01.1]} 38. Kg1 {[%clk 0:03:01.8]} 38...
Qe3+ {[%clk 0:03:59.3]} 39. Kh2 {[%clk 0:03:00.6]} 39... Qf2+ {[%clk 0:03:55.8]}
40. Kh1 {[%clk 0:02:59.5]} 40... Qe2 {[%clk 0:03:55.5]} 41. Kg1 {[%clk
0:02:58.3]} 41... h3 {[%clk 0:03:55.1]} 42. Kh1 {[%clk 0:02:57.2]} 42... Qg2#
{[%clk 0:03:54.9]} 0-1

[Event "Live Chess"]
[Site "Chess.com"]
[Date "2023.05.21"]
[Round "-"]
[White "hturner40"]
[Black "JohanKjeldahl"]
[Result "0-1"]
[WhiteElo "1773"]
[BlackElo "1883"]
[TimeControl "300"]
[EndTime "6:27:59 PDT"]
[Termination "JohanKjeldahl won on time"]

1. Nf3 {[%clk 0:04:57.7]} 1... d5 {[%clk 0:04:58.1]} 2. g3 {[%clk 0:04:55.6]}
2... c5 {[%clk 0:04:54.1]} 3. Bg2 {[%clk 0:04:54]} 3... Nc6 {[%clk 0:04:53.2]}
4. d4 {[%clk 0:04:53]} 4... cxd4 {[%clk 0:04:50.8]} 5. Nxd4 {[%clk 0:04:49.5]}
5... g6 {[%clk 0:04:48.1]} 6. c4 {[%clk 0:04:46]} 6... Nf6 {[%clk 0:04:41.1]} 7.
Nc3 {[%clk 0:04:33.5]} 7... e6 {[%clk 0:04:27]} 8. Bg5 {[%clk 0:04:28.7]} 8...
Be7 {[%clk 0:04:24.5]} 9. O-O {[%clk 0:03:54.3]} 9... O-O {[%clk 0:04:17.8]} 10.
e3 {[%clk 0:03:31.5]} 10... Bd7 {[%clk 0:04:11.5]} 11. Bxf6 {[%clk 0:03:23.5]}
11... Bxf6 {[%clk 0:04:09.5]} 12. cxd5 {[%clk 0:03:22.6]} 12... exd5 {[%clk
0:04:08]} 13. Nxd5 {[%clk 0:03:21]} 13... Bg7 {[%clk 0:04:05.2]} 14. Rb1 {[%clk
0:02:41.6]} 14... Nxd4 {[%clk 0:04:03.5]} 15. exd4 {[%clk 0:02:39.3]} 15... Bc6
{[%clk 0:04:02.9]} 16. Qb3 {[%clk 0:02:08.4]} 16... Bxd4 {[%clk 0:03:54.3]} 17.
Rbd1 {[%clk 0:02:04.8]} 17... Bg7 {[%clk 0:03:51.8]} 18. Nb4 {[%clk 0:01:42.4]}
18... Qf6 {[%clk 0:03:49.8]} 19. Nxc6 {[%clk 0:01:36.7]} 19... bxc6 {[%clk
0:03:47.2]} 20. Rd7 {[%clk 0:01:02.4]} 20... Rab8 {[%clk 0:03:43.3]} 21. Qc3
{[%clk 0:00:50.3]} 21... Rxb2 {[%clk 0:03:37.1]} 22. Qxf6 {[%clk 0:00:45.9]}
22... Bxf6 {[%clk 0:03:35.8]} 23. Rxa7 {[%clk 0:00:44.7]} 23... Rc8 {[%clk
0:03:26.5]} 24. Ra6 {[%clk 0:00:30.5]} 24... Bd4 {[%clk 0:03:20.9]} 25. Bxc6
{[%clk 0:00:21.1]} 25... Rb6 {[%clk 0:02:45.8]} 26. Rxb6 {[%clk 0:00:17.2]}
26... Bxb6 {[%clk 0:02:44.5]} 27. Bd5 {[%clk 0:00:16.1]} 27... Rc5 {[%clk
0:02:39.4]} 28. Bb3 {[%clk 0:00:14]} 28... Rf5 {[%clk 0:02:35.4]} 29. Kg2 {[%clk
0:00:11.6]} 29... Kg7 {[%clk 0:02:33.2]} 30. f4 {[%clk 0:00:10.3]} 30... Rc5
{[%clk 0:02:28.2]} 31. Rd1 {[%clk 0:00:07.5]} 31... Rc7 {[%clk 0:02:26.6]} 32.
Rd6 {[%clk 0:00:05.3]} 32... Bc5 {[%clk 0:02:23.2]} 33. Rd8 {[%clk 0:00:02.8]}
33... h5 {[%clk 0:02:20.5]} 0-1

[Event "Live Chess"]
[Site "Chess.com"]
[Date "2023.05.21"]
[Round "-"]
[White "LL220284LL"]
[Black "HoarseyHorsey"]
[Result "1-0"]
[WhiteElo "2270"]
[BlackElo "1467"]
[TimeControl "300"]
[EndTime "6:27:59 PDT"]
[Termination "LL220284LL won by resignation"]

1. Nf3 {[%clk 0:04:59.4]} 1... d5 {[%clk 0:04:58.5]} 2. c4 {[%clk 0:04:58.1]}
2... Nc6 {[%clk 0:04:56]} 3. cxd5 {[%clk 0:04:56.5]} 3... Qxd5 {[%clk
0:04:55.3]} 4. Nc3 {[%clk 0:04:56]} 4... Qh5 {[%clk 0:04:53.7]} 5. e3 {[%clk
0:04:53.8]} 5... e6 {[%clk 0:04:51.5]} 6. Be2 {[%clk 0:04:53.3]} 6... Qg6 {[%clk
0:04:46.6]} 7. d4 {[%clk 0:04:51.6]} 7... Nf6 {[%clk 0:04:45.2]} 8. Nb5 {[%clk
0:04:48.3]} 8... Bd6 {[%clk 0:04:42.1]} 9. b4 {[%clk 0:04:43.5]} 9... a6 {[%clk
0:04:41.1]} 10. Nxd6+ {[%clk 0:04:42.6]} 10... cxd6 {[%clk 0:04:40.5]} 11. a4
{[%clk 0:04:41.3]} 11... Nxb4 {[%clk 0:04:38.1]} 12. Ba3 {[%clk 0:04:39.8]}
12... Nfd5 {[%clk 0:04:32.3]} 13. Qb3 {[%clk 0:04:36.7]} 13... Bd7 {[%clk
0:04:20.8]} 14. Bxb4 {[%clk 0:04:34.6]} 14... Nxb4 {[%clk 0:04:19.9]} 15. Qxb4
{[%clk 0:04:34.5]} 15... Bc6 {[%clk 0:04:09]} 16. Qxd6 {[%clk 0:04:33.1]} 16...
Rd8 {[%clk 0:04:04.7]} 17. Qg3 {[%clk 0:04:30.3]} 17... Qc2 {[%clk 0:04:01.8]}
18. Rd1 {[%clk 0:04:21.5]} 18... O-O {[%clk 0:03:59.4]} 19. Ne5 {[%clk 0:04:16]}
19... Bxa4 {[%clk 0:03:54.3]} 20. Kf1 {[%clk 0:04:10]} 20... Bb5 {[%clk
0:03:38.5]} 21. Re1 {[%clk 0:04:04.6]} 21... Bxe2+ {[%clk 0:03:15.1]} 22. Rxe2
{[%clk 0:04:04.5]} 22... Qc1+ {[%clk 0:03:10.4]} 23. Re1 {[%clk 0:04:03.7]}
23... Qa3 {[%clk 0:03:00.3]} 24. h4 {[%clk 0:04:02.3]} 24... Rc8 {[%clk
0:02:59]} 25. Kg1 {[%clk 0:03:58.1]} 25... Rc1 {[%clk 0:02:54.8]} 26. Rxc1
{[%clk 0:03:56.8]} 26... Qxc1+ {[%clk 0:02:53.9]} 27. Kh2 {[%clk 0:03:56.7]}
27... Qd2 {[%clk 0:02:49.8]} 28. Qf3 {[%clk 0:03:54.8]} 28... b5 {[%clk
0:02:42.7]} 29. Rd1 {[%clk 0:03:54.1]} 29... Qc2 {[%clk 0:02:39.6]} 30. Ra1
{[%clk 0:03:51.7]} 30... f6 {[%clk 0:02:30.8]} 31. Nc6 {[%clk 0:03:38.5]} 31...
Rc8 {[%clk 0:02:21.8]} 32. Ne7+ {[%clk 0:03:37.2]} 32... Kf7 {[%clk 0:02:20.5]}
33. Nxc8 {[%clk 0:03:37.1]} 1-0

[Event "Live Chess"]
[Site "Chess.com"]
[Date "2023.05.21"]
[Round "-"]
[White "viktorskliarov"]
[Black "Ian-Morley"]
[Result "1-0"]
[WhiteElo "2651"]
[BlackElo "1058"]
[TimeControl "300"]
[EndTime "6:28:11 PDT"]
[Termination "viktorskliarov won by resignation"]

1. e4 {[%clk 0:04:56.4]} 1... e5 {[%clk 0:04:55.7]} 2. Nc3 {[%clk 0:04:55.4]}
2... Nc6 {[%clk 0:04:53.6]} 3. Bc4 {[%clk 0:04:54.2]} 3... Bc5 {[%clk
0:04:51.8]} 4. Qg4 {[%clk 0:04:39.9]} 4... Qf6 {[%clk 0:04:46.3]} 5. Nd5 {[%clk
0:04:31.8]} 5... Qxf2+ {[%clk 0:04:43.4]} 6. Kd1 {[%clk 0:04:30]} 6... d6 {[%clk
0:04:20.7]} 7. Qxg7 {[%clk 0:04:27.9]} 7... b5 {[%clk 0:04:07.7]} 8. Bxb5 {[%clk
0:03:54.1]} 8... Bb7 {[%clk 0:03:18.7]} 9. Nf3 {[%clk 0:03:48]} 9... a6 {[%clk
0:03:12.2]} 10. Rf1 {[%clk 0:03:38.9]} 10... Qxf1+ {[%clk 0:02:47.3]} 11. Bxf1
{[%clk 0:03:35.9]} 11... O-O-O {[%clk 0:02:41.5]} 12. Qxh8 {[%clk 0:03:32.4]}
12... Nge7 {[%clk 0:02:40.8]} 13. Nxe7+ {[%clk 0:03:30.9]} 13... Nxe7 {[%clk
0:02:40.1]} 14. Qxh7 {[%clk 0:03:30]} 14... Ng6 {[%clk 0:02:37.5]} 15. Qxf7
{[%clk 0:03:25.4]} 15... Nf4 {[%clk 0:02:35.6]} 16. d4 {[%clk 0:03:22.4]} 16...
exd4 {[%clk 0:02:32.1]} 17. Bxf4 {[%clk 0:03:21.1]} 17... Bxe4 {[%clk 0:02:30]}
18. Bxa6+ {[%clk 0:03:19.7]} 18... Kb8 {[%clk 0:02:28.2]} 19. Qb3+ {[%clk
0:03:17.1]} 19... Bb6 {[%clk 0:02:25.8]} 20. Bd3 {[%clk 0:03:16.1]} 20... Bxd3
{[%clk 0:02:24]} 21. cxd3 {[%clk 0:03:14.8]} 1-0

[Event "Live Chess"]
[Site "Chess.com"]
[Date "2023.05.21"]
[Round "-"]
[White "wadsy27"]
[Black "Anirudh_23"]
[Result "1-0"]
[WhiteElo "2551"]
[BlackElo "1884"]
[TimeControl "300"]
[EndTime "6:28:12 PDT"]
[Termination "wadsy27 won by resignation"]

1. c4 {[%clk 0:04:58.4]} 1... Nf6 {[%clk 0:04:56.8]} 2. g3 {[%clk 0:04:56.8]}
2... g6 {[%clk 0:04:54.6]} 3. Bg2 {[%clk 0:04:55.4]} 3... Bg7 {[%clk 0:04:53.8]}
4. Nf3 {[%clk 0:04:53.2]} 4... O-O {[%clk 0:04:52]} 5. O-O {[%clk 0:04:52.9]}
5... d6 {[%clk 0:04:47.8]} 6. Nc3 {[%clk 0:04:51.8]} 6... e5 {[%clk 0:04:46]} 7.
d3 {[%clk 0:04:50.9]} 7... Re8 {[%clk 0:04:38.7]} 8. Bg5 {[%clk 0:04:46]} 8...
h6 {[%clk 0:04:36.9]} 9. Bxf6 {[%clk 0:04:45.1]} 9... Bxf6 {[%clk 0:04:32.2]}
10. Rb1 {[%clk 0:04:43.7]} 10... c6 {[%clk 0:04:29.4]} 11. b4 {[%clk 0:04:42.9]}
11... Nd7 {[%clk 0:04:26.3]} 12. e4 {[%clk 0:04:41.6]} 12... Nf8 {[%clk
0:04:22.5]} 13. b5 {[%clk 0:04:40]} 13... Ne6 {[%clk 0:04:17.4]} 14. h4 {[%clk
0:04:26]} 14... Nd4 {[%clk 0:04:07.9]} 15. Nxd4 {[%clk 0:04:24.3]} 15... exd4
{[%clk 0:04:07.8]} 16. Ne2 {[%clk 0:04:23.7]} 16... c5 {[%clk 0:04:04]} 17. Qd2
{[%clk 0:04:20.7]} 17... Bg7 {[%clk 0:04:01.1]} 18. Kh2 {[%clk 0:04:15.3]} 18...
f5 {[%clk 0:03:58.7]} 19. exf5 {[%clk 0:04:12.6]} 19... Bxf5 {[%clk 0:03:58.6]}
20. Nf4 {[%clk 0:04:11.9]} 20... Rb8 {[%clk 0:03:50.2]} 21. Rbe1 {[%clk
0:04:09.5]} 21... b6 {[%clk 0:03:47.4]} 22. Bh3 {[%clk 0:04:03.5]} 22... Bxh3
{[%clk 0:03:22.8]} 23. Kxh3 {[%clk 0:04:03.4]} 23... Qf6 {[%clk 0:03:21.8]} 24.
Nd5 {[%clk 0:03:56.4]} 24... Qf5+ {[%clk 0:03:13.6]} 25. Kg2 {[%clk 0:03:55.4]}
25... Qf7 {[%clk 0:02:59.6]} 26. Rxe8+ {[%clk 0:03:53.3]} 26... Rxe8 {[%clk
0:02:59.5]} 27. Re1 {[%clk 0:03:52.4]} 27... Be5 {[%clk 0:02:45.7]} 28. f4
{[%clk 0:03:49.9]} 28... Bg7 {[%clk 0:02:39.7]} 29. Kf2 {[%clk 0:03:46.7]} 29...
g5 {[%clk 0:02:34]} 30. hxg5 {[%clk 0:03:43.6]} 30... hxg5 {[%clk 0:02:33.9]}
31. Rxe8+ {[%clk 0:03:42.8]} 31... Qxe8 {[%clk 0:02:32.9]} 32. Qe2 {[%clk
0:03:42.5]} 32... Qf7 {[%clk 0:02:05.3]} 33. Qe7 {[%clk 0:03:33.5]} 33... gxf4
{[%clk 0:01:48.3]} 34. Qxf7+ {[%clk 0:03:32.1]} 34... Kxf7 {[%clk 0:01:48.2]}
35. gxf4 {[%clk 0:03:31]} 35... Bf6 {[%clk 0:01:36.1]} 36. Kf3 {[%clk 0:03:29]}
36... Bd8 {[%clk 0:01:34.3]} 37. Ke4 {[%clk 0:03:27.6]} 37... Ke6 {[%clk
0:01:32.6]} 38. f5+ {[%clk 0:03:26.1]} 38... Kf7 {[%clk 0:01:31.1]} 39. a4
{[%clk 0:03:25]} 39... Kg7 {[%clk 0:01:29.3]} 40. Nf4 {[%clk 0:03:06.9]} 40...
Kf7 {[%clk 0:01:11.4]} 41. Nh5 {[%clk 0:02:51.9]} 41... Bh4 {[%clk 0:01:05.8]}
42. Kd5 {[%clk 0:02:50.5]} 42... Be1 {[%clk 0:00:54.8]} 43. Kxd6 {[%clk
0:02:46.8]} 43... Bc3 {[%clk 0:00:51.2]} 44. Kc6 {[%clk 0:02:46]} 44... Bd2
{[%clk 0:00:49.8]} 45. Kb7 {[%clk 0:02:45.1]} 45... Ba5 {[%clk 0:00:48.1]} 46.
Kxa7 {[%clk 0:02:44.4]} 46... Ke7 {[%clk 0:00:46.7]} 47. Kb7 {[%clk 0:02:43.4]}
47... Kd7 {[%clk 0:00:44.3]} 48. Nf6+ {[%clk 0:02:41.3]} 48... Ke7 {[%clk
0:00:43.3]} 49. Nd5+ {[%clk 0:02:41.2]} 49... Kf7 {[%clk 0:00:42.1]} 50. Nxb6
{[%clk 0:02:41.1]} 1-0

[Event "Live Chess"]
[Site "Chess.com"]
[Date "2023.05.21"]
[Round "-"]
[White "PantherCal"]
[Black "ShanthamGrarks"]
[Result "1-0"]
[WhiteElo "1811"]
[BlackElo "1962"]
[TimeControl "300"]
[EndTime "6:29:01 PDT"]
[Termination "PantherCal won by resignation"]

1. e4 {[%clk 0:04:59]} 1... e6 {[%clk 0:04:56.3]} 2. Nf3 {[%clk 0:04:58.5]} 2...
d5 {[%clk 0:04:52]} 3. exd5 {[%clk 0:04:58.4]} 3... exd5 {[%clk 0:04:50.7]} 4.
d4 {[%clk 0:04:58.3]} 4... Nf6 {[%clk 0:04:49.7]} 5. Bd3 {[%clk 0:04:58.2]} 5...
Bd6 {[%clk 0:04:49]} 6. O-O {[%clk 0:04:58.1]} 6... O-O {[%clk 0:04:48.3]} 7.
Bg5 {[%clk 0:04:57.5]} 7... h6 {[%clk 0:04:47.6]} 8. Bh4 {[%clk 0:04:56.4]} 8...
Bg4 {[%clk 0:04:47.2]} 9. Nbd2 {[%clk 0:04:55.4]} 9... Nbd7 {[%clk 0:04:45.2]}
10. c3 {[%clk 0:04:54.6]} 10... c6 {[%clk 0:04:43.7]} 11. Qc2 {[%clk 0:04:54]}
11... Qc7 {[%clk 0:04:42.2]} 12. Rfe1 {[%clk 0:04:53.6]} 12... Rae8 {[%clk
0:04:40]} 13. Bg3 {[%clk 0:04:53]} 13... Bxg3 {[%clk 0:04:37.9]} 14. hxg3 {[%clk
0:04:52.9]} 14... b6 {[%clk 0:04:27]} 15. Bf5 {[%clk 0:04:50.4]} 15... Bxf5
{[%clk 0:04:25]} 16. Qxf5 {[%clk 0:04:50.3]} 16... c5 {[%clk 0:04:21.6]} 17. g4
{[%clk 0:04:44.6]} 17... cxd4 {[%clk 0:04:18.5]} 18. Nxd4 {[%clk 0:04:44.5]}
18... Nc5 {[%clk 0:04:02.9]} 19. N2f3 {[%clk 0:04:35.9]} 19... Nce4 {[%clk
0:03:57.6]} 20. g5 {[%clk 0:04:33.5]} 20... hxg5 {[%clk 0:03:54.5]} 21. Nxg5
{[%clk 0:04:33.4]} 21... g6 {[%clk 0:03:51.9]} 22. Nxe4 {[%clk 0:04:25.7]} 22...
gxf5 {[%clk 0:03:48.2]} 23. Nxf6+ {[%clk 0:04:24.8]} 23... Kh8 {[%clk 0:03:40]}
24. Nxe8 {[%clk 0:04:24.1]} 24... Qd8 {[%clk 0:03:27]} 25. Nc6 {[%clk
0:03:55.3]} 25... Qd7 {[%clk 0:03:21.2]} 26. Ne5 {[%clk 0:03:27.2]} 26... Qe6
{[%clk 0:02:55.2]} 27. Nc7 {[%clk 0:03:16.8]} 27... Qd6 {[%clk 0:02:40.7]} 28.
Nb5 {[%clk 0:03:04.4]} 28... Qf6 {[%clk 0:02:34.3]} 29. Nd4 {[%clk 0:03:00.5]}
29... Rg8 {[%clk 0:02:20.5]} 30. g3 {[%clk 0:02:53.7]} 30... f4 {[%clk
0:02:18.7]} 31. Kg2 {[%clk 0:02:52]} 31... fxg3 {[%clk 0:02:14.8]} 32. fxg3
{[%clk 0:02:51.9]} 32... Rg5 {[%clk 0:01:58]} 33. Rh1+ {[%clk 0:02:48.9]} 33...
Kg7 {[%clk 0:01:55.2]} 34. Ndf3 {[%clk 0:02:37.1]} 34... Rf5 {[%clk 0:01:50.3]}
35. Rae1 {[%clk 0:02:19.8]} 35... d4 {[%clk 0:01:49.6]} 36. cxd4 {[%clk
0:02:18.4]} 36... Qc6 {[%clk 0:01:49.1]} 37. Nxc6 {[%clk 0:02:15.9]} 37... Rxf3
{[%clk 0:01:48.8]} 38. Kxf3 {[%clk 0:02:14.3]} 38... f5 {[%clk 0:01:48.5]} 39.
Re7+ {[%clk 0:02:11.5]} 1-0